bitfinex-derivatives/quotes_BNBF0:USTF0_20251219
["timestamp","ask_amount","ask_price","bid_price","bid_amount"]
[1766140056444,1.18332482,845.38,844.51,0.88399226]
[1766140056637,1.18332482,845.37,844.56,0.88399226]
[1766140056837,1.18332482,845.36,844.56,0.88399226]
[1766140057137,1.17075614,845.65,844.56,0.88399226]
[1766140057336,1.18391637,845.64,844.56,0.88399226]
[1766140058440,1.17075614,845.65,844.56,0.88399226]
[1766140058742,1.18395116,845.64,844.56,0.88399226]
[1766140058943,1.17075614,845.61,844.52,0.88399226]
[1766140059138,1.17075614,845.61,844.37,1.17775556]
[1766140059139,1.17075614,845.58,844.48,0.88399226]
[1766140059344,1.18395116,845.57,844.48,0.88399226]
[1766140060044,1.18395116,845.57,843.86,6.84081582]
[1766140060045,1.18395116,845.57,844.53,0.88399226]
[1766140060247,1.18395116,845.56,844.53,0.88399226]
[1766140060445,1.18395116,845.55,844.53,0.88399226]
[1766140060645,1.18395116,845.54,844.53,0.88399226]
[1766140060846,1.18395116,845.53,844.53,0.88399226]
[1766140061047,1.18395116,845.52,844.48,0.88399226]
[1766140061244,1.18395116,845.51,844.48,0.88399226]
[1766140061443,1.18395116,845.5,844.48,0.88399226]
[1766140061648,1.18395116,845.49,844.48,0.88399226]
[1766140061948,1.18395116,845.48,844.44,0.88399226]
[1766140062149,1.18395116,845.47,844.47,0.88399226]
[1766140062444,1.18395116,845.46,844.47,0.88399226]
[1766140062642,1.18395116,845.45,844.46,0.88399226]
[1766140062848,1.17075614,845.55,844.46,0.88399226]
[1766140062849,1.18395116,845.44,844.46,0.88399226]
[1766140063048,1.18395116,845.43,844.46,0.88399226]
[1766140063249,1.18395116,845.42,844.46,0.88399226]
[1766140063545,1.18395116,845.41,844.46,0.88399226]
[1766140063849,1.18395116,845.4,844.47,0.88399226]
[1766140064150,1.18395116,845.39,844.47,0.88399226]
[1766140064344,1.18395116,845.38,844.47,0.88399226]
[1766140064548,1.18395116,845.37,844.47,0.88399226]
[1766140064746,1.18395116,845.36,844.47,0.88399226]
[1766140064950,1.18395116,845.35,844.46,0.88399226]
[1766140065245,1.18395116,845.34,844.45,0.88399226]
[1766140065550,1.18395116,845.33,844.42,0.88399226]
[1766140065742,1.18395116,845.32,844.42,0.88399226]
[1766140065945,1.18395116,845.31,844.42,0.88399226]
[1766140066146,1.17075614,845.51,844.42,0.88399226]
[1766140066349,1.18457133,845.5,844.42,0.88399226]
[1766140066651,1.17075614,845.48,844.38,0.88399226]
[1766140066847,1.17075614,845.44,844.35,0.88399226]
[1766140067151,1.18457133,845.43,844.35,0.88399226]
[1766140067348,1.18457133,845.43,844.34,0.88399226]
[1766140067553,1.18457133,845.43,844.19,1.17775556]
[1766140067554,1.18457133,845.43,844.35,0.88399226]
[1766140067852,1.18457133,845.42,844.35,0.88399226]
[1766140068151,1.18457133,845.41,844.35,0.88399226]
[1766140068353,1.18457133,845.4,844.35,0.88399226]
[1766140068546,1.18457133,845.39,844.35,0.88399226]
[1766140068751,1.18457133,845.38,844.35,0.88399226]
[1766140068947,1.18457133,845.37,844.35,0.88399226]
[1766140069146,1.18457133,845.36,844.35,0.88399226]
[1766140069352,1.18457133,845.35,844.34,0.88399226]
[1766140069551,1.18457133,845.34,844.34,0.88399226]
[1766140069751,1.18457133,845.33,844.34,0.88399226]
[1766140069952,1.18457133,845.32,844.34,0.88399226]
[1766140070254,1.18457133,845.31,844.31,0.88399226]
[1766140070549,1.18457133,845.3,844.31,0.88399226]
[1766140070749,1.18457133,845.29,844.31,0.88399226]
[1766140070948,1.18457133,845.28,844.31,0.88399226]
[1766140071150,1.18457133,845.27,844.31,0.88399226]
[1766140071354,1.18457133,845.26,844.35,0.88399226]
[1766140071653,1.18457133,845.25,844.35,0.88399226]
[1766140071852,1.18457133,845.24,844.35,0.88399226]
[1766140072050,1.18457133,845.23,844.35,0.88399226]
[1766140072254,1.18457133,845.22,844.35,0.88399226]
[1766140072554,1.18457133,845.21,844.35,0.88399226]
[1766140072850,1.18457133,845.2,844.35,0.88399226]
[1766140073050,1.18457133,845.19,844.35,0.88399226]
[1766140073253,1.17075614,845.48,844.35,0.88399226]
[1766140073454,1.18365546,845.47,844.35,0.88399226]
[1766140073954,1.17075614,845.44,844.31,0.88399226]
[1766140074155,1.18365546,845.43,844.38,0.88399226]
[1766140074349,1.18365546,845.43,844.08,1.76663334]
[1766140074350,1.18365546,845.42,844.33,0.88399226]
[1766140074654,1.18365546,845.41,844.33,0.88399226]
[1766140074854,1.18365546,845.4,844.32,0.88399226]
[1766140075055,1.18365546,845.39,844.32,0.88399226]
[1766140075250,1.18365546,845.38,844.32,0.88399226]
[1766140075455,1.18365546,845.37,844.32,0.88399226]
[1766140075654,1.18365546,845.36,844.32,0.88399226]
[1766140075951,1.18365546,845.35,844.26,0.88399226]
[1766140076152,1.18365546,845.34,844.26,0.88399226]
[1766140076354,1.18365546,845.33,844.26,0.88399226]
[1766140076554,1.18365546,845.32,844.26,0.88399226]
[1766140076755,1.18365546,845.31,844.26,0.88399226]
[1766140077055,1.18365546,845.3,844.31,0.88399226]
[1766140077255,1.18365546,845.29,844.31,0.88399226]
[1766140077455,10.04768332,845.66,843.86,6.84081582]
[1766140077456,1.18365546,845.28,844.26,0.88399226]
[1766140077653,1.18365546,845.27,844.26,0.88399226]
[1766140077852,1.18365546,845.26,844.25,0.88399226]
[1766140078154,1.18365546,845.25,844.25,0.88399226]
[1766140078355,1.18365546,845.24,844.25,0.88399226]
[1766140078550,1.18365546,845.23,844.21,0.88399226]
[1766140078751,1.18365546,845.22,844.21,0.88399226]
[1766140078952,1.17075614,845.36,843.86,6.84081582]
[1766140078953,1.18365546,845.21,844.26,0.88399226]
[1766140079156,1.18365546,845.2,844.19,0.88399226]
[1766140079452,1.18365546,845.19,844.18,0.88399226]
[1766140079654,1.18365546,845.18,844.18,0.88399226]
[1766140079957,1.18365546,845.17,844.18,0.88399226]
[1766140080157,1.18365546,845.16,844.08,0.88399226]
[1766140080358,1.18365546,845.15,844.11,0.88399226]
[1766140080558,1.18365546,845.14,844.05,0.88399226]
[1766140080758,1.18365546,845.13,844.05,0.88399226]
[1766140080958,1.18365546,845.12,844.05,0.88399226]
[1766140081158,1.18365546,845.11,844.05,0.88399226]
[1766140081460,10.04768332,845.66,844.11,0.88399226]
[1766140081461,1.18365546,845.1,844.11,0.88399226]
[1766140081653,1.18365546,845.09,844.11,0.88399226]
[1766140081958,1.18365546,845.08,844.07,0.88399226]
[1766140082160,1.18365546,845.07,844.07,0.88399226]
[1766140082357,1.18365546,845.06,844.06,0.88399226]
[1766140082558,1.18365546,845.05,844.12,0.88399226]
[1766140082758,1.17075614,845.34,844.12,0.88399226]
[1766140082959,1.18146944,845.33,844.12,0.88399226]
[1766140083159,1.18146944,845.33,844.11,0.88399226]
[1766140083355,1.18146944,845.32,844.11,0.88399226]
[1766140083559,1.18146944,845.31,844.11,0.88399226]
[1766140083758,1.18146944,845.3,844.11,0.88399226]
[1766140083959,1.18146944,845.29,844.11,0.88399226]
[1766140084258,1.17075614,845.28,844.02,0.88399226]
[1766140084455,1.18104701,845.27,844.02,0.88399226]
[1766140084659,1.17075614,845.24,843.98,0.88399226]
[1766140084860,1.18104701,845.23,843.98,0.88399226]
[1766140085458,1.18104701,845.23,843.97,0.88399226]
[1766140085660,1.18104701,845.22,843.99,0.88399226]
[1766140085959,1.18104701,845.21,843.99,0.88399226]
[1766140086256,1.18104701,845.2,843.99,0.88399226]
[1766140086458,1.18104701,845.19,843.99,0.88399226]
[1766140086660,1.18104701,845.18,843.95,0.88399226]
[1766140086861,1.18104701,845.17,843.95,0.88399226]
[1766140087060,1.18104701,845.16,843.95,0.88399226]
[1766140087361,1.18104701,845.15,843.95,0.88399226]
[1766140087559,1.18104701,845.14,843.95,0.88399226]
[1766140087758,1.18104701,845.13,844.01,0.88399226]
[1766140087962,1.18104701,845.12,844.01,0.88399226]
[1766140088163,1.18104701,845.11,844.01,0.88399226]
[1766140088363,1.18104701,845.1,844.0,0.88399226]
[1766140088564,1.75140089,845.49,843.86,6.84081582]
[1766140088565,1.18104701,845.09,844.05,0.88399226]
[1766140088761,1.18104701,845.08,844.0,0.88399226]
[1766140089067,1.17075614,845.08,843.74,0.88399226]
[1766140089260,1.17075614,845.1,843.72,0.88399226]
[1766140089559,1.17936433,845.09,843.79,0.88399226]
[1766140089764,1.17936433,845.08,843.86,0.88399226]
[1766140090064,1.17936433,845.07,843.79,0.88399226]
[1766140090264,1.17936433,845.06,843.78,0.88399226]
[1766140090459,1.17936433,845.05,843.78,0.88399226]
[1766140090764,1.17936433,845.04,843.73,0.88399226]
[1766140090964,1.17936433,845.03,843.78,0.88399226]
[1766140091159,1.17936433,845.02,843.78,0.88399226]
[1766140091363,1.17936433,845.01,843.76,0.88399226]
[1766140091564,1.17936433,845.0,843.82,0.88399226]
[1766140091761,1.17936433,844.99,843.82,0.88399226]
[1766140091960,1.17936433,844.98,843.82,0.88399226]
[1766140092161,1.17907442,844.97,843.8,0.88399226]
[1766140092362,1.17075614,845.26,843.8,0.88399226]
[1766140092566,1.17075614,845.17,843.71,0.88399226]
[1766140092865,1.178834,845.16,843.69,0.88399226]
[1766140093060,1.178834,845.15,843.69,0.88399226]
[1766140093265,1.178834,845.15,843.68,0.88399226]
[1766140093460,1.178834,845.14,843.68,0.88399226]
[1766140093663,1.178834,845.13,843.69,0.88399226]
[1766140093862,1.178834,845.12,843.67,0.88399226]
[1766140094161,1.178834,845.11,843.67,0.88399226]
[1766140094366,1.178834,845.1,843.66,0.88399226]
[1766140094667,1.178834,845.09,843.66,0.88399226]
[1766140094866,1.178834,845.08,843.66,0.88399226]
[1766140095164,1.178834,845.07,843.6,0.88399226]
[1766140095362,1.178834,845.06,843.59,1.08998255]
[1766140095562,1.178834,845.05,843.59,1.08998255]
[1766140095762,1.178834,845.04,843.63,0.88399226]
[1766140095962,1.178834,845.03,843.62,0.88399226]
[1766140096166,1.178834,845.02,843.6,0.88399226]
[1766140096467,1.178834,845.01,843.59,1.08998255]
[1766140096664,1.178834,845.0,843.59,1.08998255]
[1766140096864,1.178834,844.99,843.59,1.08998255]
[1766140097069,1.178834,844.98,843.54,0.88399226]
[1766140097262,1.17075614,845.1,843.51,0.88399226]
[1766140097263,1.178834,844.97,843.51,0.88399226]
[1766140097464,1.178834,844.96,843.51,0.88399226]
[1766140097663,1.178834,844.95,843.56,0.88399226]
[1766140097864,1.178834,844.94,843.51,0.88399226]
[1766140098068,1.178834,844.93,843.58,0.88399226]
[1766140098269,1.178834,844.92,843.57,0.88399226]
[1766140098469,1.178834,844.91,843.57,0.88399226]
[1766140098770,1.17075614,845.21,843.6,0.88399226]
[1766140098970,1.17622738,845.2,843.6,0.88399226]
[1766140099469,1.17622738,845.2,843.64,0.88399226]
[1766140099666,1.17622738,845.19,843.57,0.88399226]
[1766140100164,1.17622738,845.19,843.62,0.88399226]
[1766140100365,1.17622738,845.18,843.61,0.88399226]
[1766140100568,1.17622738,845.17,843.61,0.88399226]
[1766140100871,1.17622738,845.16,843.66,0.88399226]
[1766140101169,1.17622738,845.15,843.69,0.88399226]
[1766140101366,1.17622738,845.14,843.69,0.88399226]
[1766140101569,1.17622738,845.13,843.69,0.88399226]
[1766140101770,1.17622738,845.12,843.63,0.88399226]
[1766140102066,1.17622738,845.11,843.63,0.88399226]
[1766140102266,1.17075614,845.27,843.45,0.20610009]
[1766140102267,1.17622738,845.1,843.62,0.88399226]
[1766140102468,1.17622738,845.09,843.62,0.88399226]
[1766140102664,1.17622738,845.08,843.68,0.88399226]
[1766140102868,1.17622738,845.07,843.69,0.88399226]
[1766140103067,1.17622738,845.06,843.63,0.88399226]
[1766140103266,1.17622738,845.05,843.63,0.88399226]
[1766140103466,1.17622738,845.04,843.62,0.88399226]
[1766140103764,1.17622738,845.03,843.62,0.88399226]
[1766140103965,1.17622738,845.02,843.65,0.88399226]
[1766140104168,1.17622738,845.01,843.64,0.88399226]
[1766140104367,1.17622738,845.0,843.62,0.88399226]
[1766140104670,1.17622738,844.99,843.62,0.88399226]
[1766140104868,1.17075614,845.27,843.62,0.88399226]
[1766140105072,1.17557666,845.26,843.62,0.88399226]
[1766140105268,1.17557666,845.26,843.69,0.88399226]
[1766140105474,1.17557666,845.25,843.69,0.88399226]
[1766140105767,1.17557666,845.24,843.69,0.88399226]
[1766140105972,1.17557666,845.23,843.69,0.88399226]
[1766140106172,10.04768332,845.66,843.66,0.88399226]
[1766140106173,1.17557666,845.22,843.66,0.88399226]
[1766140106368,1.17557666,845.21,843.65,0.88399226]
[1766140106568,1.17557666,845.2,843.65,0.88399226]
[1766140106767,1.17557666,845.2,843.5,1.17775556]
[1766140106768,1.17557666,845.19,843.63,0.88399226]
[1766140106970,1.17557666,845.18,843.58,0.88399226]
[1766140107169,1.17557666,845.17,843.62,0.88399226]
[1766140107373,1.17557666,845.16,843.58,0.88399226]
[1766140107573,1.17557666,845.15,843.58,0.88399226]
[1766140107774,1.17557666,845.14,843.54,0.88399226]
[1766140107976,1.17557666,845.13,843.54,0.88399226]
[1766140108273,1.17557666,845.12,843.54,0.88399226]
[1766140108470,1.17557666,845.11,843.54,0.88399226]
[1766140108770,1.17557666,845.1,843.49,0.88399226]
[1766140108969,1.17557666,845.09,843.53,0.88399226]
[1766140109268,1.17557666,845.08,843.54,0.88399226]
[1766140109473,1.17557666,845.07,843.54,0.88399226]
[1766140109669,1.17557666,845.06,843.54,0.88399226]
[1766140109869,1.17557666,845.05,843.54,0.88399226]
[1766140110070,1.17557666,845.04,843.54,0.88399226]
[1766140110270,1.17557666,845.03,843.54,0.88399226]
[1766140110471,1.17557666,845.02,843.54,0.88399226]
[1766140110675,1.17557666,845.01,843.54,0.88399226]
[1766140110871,1.17557666,845.0,843.54,0.88399226]
[1766140111075,1.17557666,844.99,843.54,0.88399226]
[1766140111275,1.17557666,844.98,843.54,0.88399226]
[1766140111574,1.17557666,844.97,843.54,0.88399226]
[1766140111775,1.17075614,845.19,843.54,0.88399226]
[1766140111776,1.17557666,844.96,843.54,0.88399226]
[1766140111974,1.17557666,844.95,843.58,0.88399226]
[1766140112171,1.1755279,844.94,843.54,0.88399226]
[1766140112372,1.1755279,844.93,843.55,0.88399226]
[1766140112571,1.1755279,844.92,843.55,0.88399226]
[1766140112771,1.1755279,844.91,843.55,0.88399226]
[1766140112971,1.17075614,845.19,843.55,0.88399226]
[1766140113175,1.17539994,845.18,843.54,0.88399226]
[1766140113376,1.17075614,845.15,843.51,0.88399226]
[1766140113576,1.17539994,845.14,843.51,0.88399226]
[1766140114277,2.34615608,845.14,843.49,0.88399226]
[1766140114589,1.17539994,845.13,843.51,0.88399226]
[1766140114778,1.17539994,845.12,843.5,0.88399226]
[1766140114978,1.17539994,845.11,843.5,0.88399226]
[1766140115178,1.17539994,845.1,843.55,0.88399226]
[1766140115379,1.17539994,845.09,843.5,0.88399226]
[1766140115578,1.17539994,845.08,843.5,0.88399226]
[1766140115778,1.17539994,845.08,843.45,0.20610009]
[1766140115779,1.17539994,845.07,843.54,0.88399226]
[1766140116075,1.17539994,845.06,843.54,0.88399226]
[1766140116278,10.04768332,845.66,843.52,0.88399226]
[1766140116279,1.17539994,845.05,843.52,0.88399226]
[1766140116475,1.17539994,845.04,843.54,0.88399226]
[1766140116679,1.17539994,845.03,843.54,0.88399226]
[1766140116873,1.17539994,845.02,843.54,0.88399226]
[1766140117175,1.17539994,845.01,843.54,0.88399226]
[1766140117377,1.17539994,845.0,843.54,0.88399226]
[1766140117575,1.17539994,844.99,843.54,0.88399226]
[1766140117775,1.17539994,844.98,843.54,0.88399226]
[1766140118078,1.17539994,844.97,843.54,0.88399226]
[1766140118274,1.17539994,844.96,843.59,0.88399226]
[1766140118479,1.17539994,844.95,843.61,0.88399226]
[1766140118778,1.17539994,844.94,843.61,0.88399226]
[1766140118974,1.17539994,844.93,843.61,0.88399226]
[1766140119175,1.17539994,844.93,843.46,1.17775556]
[1766140119176,1.17539994,844.92,843.55,0.88399226]
[1766140119375,1.17539994,844.91,843.56,0.88399226]
[1766140119580,1.17539994,844.9,843.54,0.88399226]
[1766140119875,1.17539994,844.89,843.47,0.88399226]
[1766140120073,1.17539994,844.88,843.47,0.88399226]
[1766140120278,1.17539994,844.87,843.48,0.88399226]
[1766140120475,1.17539994,844.86,843.48,0.88399226]
[1766140120675,1.17539994,844.85,843.48,0.88399226]
[1766140120979,1.17539994,844.84,843.38,0.88399226]
[1766140121181,1.17539994,844.83,843.37,0.88399226]
[1766140121379,1.17539994,844.82,843.38,0.88399226]
[1766140121680,1.17539994,844.81,843.35,0.88399226]
[1766140121874,1.17539994,844.8,843.35,0.88399226]
[1766140122080,1.17539994,844.79,843.41,0.88399226]
[1766140122276,1.17539994,844.78,843.33,0.88399226]
[1766140122476,1.17539994,844.77,843.33,0.88399226]
[1766140122779,1.17539994,844.76,843.33,0.88399226]
[1766140122981,1.17539994,844.75,843.33,0.88399226]
[1766140123182,1.17075614,844.92,843.34,0.88399226]
[1766140123384,1.17075614,844.89,843.29,0.88399226]
[1766140123683,1.17075614,844.72,843.11,0.88399226]
[1766140123879,1.17601075,844.71,843.14,0.88399226]
[1766140124083,1.17601075,844.7,843.22,0.88399226]
[1766140124282,1.17601075,844.69,843.22,0.88399226]
[1766140124484,1.17601075,844.68,843.22,0.88399226]
[1766140124684,1.17601075,844.67,843.26,0.88399226]
[1766140124885,1.17601075,844.66,843.16,0.88399226]
[1766140125085,1.17601075,844.65,843.16,0.88399226]
[1766140125284,1.17601075,844.64,843.15,0.88399226]
[1766140125485,1.17601075,844.63,843.12,0.88399226]
[1766140125685,1.17601075,844.62,843.0,0.88399226]
[1766140126185,1.17601075,844.62,842.98,0.88399226]
[1766140126485,1.17601075,844.61,842.99,0.88399226]
[1766140126685,1.17601075,844.6,842.99,0.88399226]
[1766140126985,0.20622039,844.21,842.99,0.88399226]
[1766140127282,0.20622039,844.21,842.98,0.88399226]
[1766140127480,0.20622039,844.21,843.03,0.88399226]
[1766140128285,0.20622039,844.21,843.01,0.88399226]
[1766140128482,0.20622039,844.21,842.98,0.88399226]
[1766140128883,0.20622039,844.21,842.97,0.88399226]
[1766140129084,0.20622039,844.21,842.96,0.20621122]
[1766140130386,0.20622039,844.21,842.85,0.88399226]
[1766140130590,0.20622039,844.21,842.85,1.09024076]
[1766140130993,0.20622039,844.21,842.91,0.88399226]
[1766140131192,0.20622039,844.21,842.85,0.2062485]
[1766140131691,0.20622039,844.21,842.88,0.88399226]
[1766140131892,0.20622039,844.21,842.9,0.88399226]
[1766140132293,0.20622039,844.21,842.85,0.2062485]
[1766140132588,0.20622039,844.21,842.96,0.87999512]
[1766140132988,0.20622039,844.21,843.01,0.87999512]
[1766140133192,0.20622039,844.21,842.97,0.87999512]
[1766140133390,0.20622039,844.21,843.03,0.87999512]
[1766140133996,0.20622039,844.21,842.85,0.2062485]
[1766140133997,0.20622039,844.21,843.06,0.87999512]
[1766140134194,0.20622039,844.21,843.07,0.87999512]
[1766140135295,0.20622039,844.21,843.08,0.87999512]
[1766140136195,0.20622039,844.21,843.16,0.87999512]
[1766140137195,0.20622039,844.21,843.21,0.87999512]
[1766140137596,0.20622039,844.21,843.13,0.87999512]
[1766140137994,0.20622039,844.21,843.03,0.87999512]
[1766140138694,0.20622039,844.21,843.06,0.87999512]
[1766140139397,0.20622039,844.21,843.07,0.87999512]
[1766140139597,0.20622039,844.21,843.06,0.87999512]
[1766140140297,0.20622039,844.21,842.85,0.2062485]
[1766140140298,0.20622039,844.21,843.05,0.87999512]
[1766140141198,0.20622039,844.21,843.04,0.87999512]
[1766140141595,0.20622039,844.21,842.85,0.2062485]
[1766140141596,0.20622039,844.21,842.97,0.87999512]
[1766140141795,0.20622039,844.21,843.04,0.87999512]
[1766140142399,0.20622039,844.21,843.13,0.87999512]
[1766140143300,0.20622039,844.21,843.05,0.87999512]
[1766140143492,0.20622039,844.21,843.14,0.87999512]
[1766140144198,0.20622039,844.21,843.1,0.87999512]
[1766140144501,0.20622039,844.21,843.09,0.87999512]
[1766140144800,0.20622039,844.21,843.12,0.87999512]
[1766140145194,0.20622039,844.21,843.13,0.87999512]
[1766140145596,0.20622039,844.21,843.18,0.87999512]
[1766140145994,0.20622039,844.21,843.17,0.87999512]
[1766140146400,0.20622039,844.21,843.18,0.87999512]
[1766140146699,0.20622039,844.21,843.22,0.87999512]
[1766140146896,0.20622039,844.21,843.25,0.87999512]
[1766140147296,0.20622039,844.21,843.26,0.87999512]
[1766140147996,0.20622039,844.21,843.23,0.87999512]
[1766140148400,0.20622039,844.21,843.24,0.87999512]
[1766140148798,0.20622039,844.21,843.31,0.87999512]
[1766140149602,0.20622039,844.21,843.24,0.87999512]
[1766140149899,0.20622039,844.21,843.29,0.87999512]
[1766140150196,0.20622039,844.21,843.32,0.87999512]
[1766140150602,0.20622039,844.21,843.17,1.17775556]
[1766140150603,0.20622039,844.21,843.31,0.87999512]
[1766140151103,0.20622039,844.21,843.37,0.87999512]
[1766140151598,0.20622039,844.21,843.34,0.87999512]
[1766140151903,0.20622039,844.21,843.36,0.87999512]
[1766140152103,0.20622039,844.21,842.85,0.2062485]
[1766140152104,0.20622039,844.21,843.39,0.87999512]
[1766140152601,0.20622039,844.21,843.45,0.87999512]
[1766140153302,0.20622039,844.21,843.39,0.87999512]
[1766140153706,0.20622039,844.21,842.85,0.2062485]
[1766140153707,1.17633367,844.83,843.51,0.87999512]
[1766140153906,0.20613427,844.29,843.45,0.87999512]
[1766140154201,1.17633367,844.81,843.4,0.87999512]
[1766140154406,0.20614282,844.2,843.43,0.87999512]
[1766140154707,1.17633367,844.79,843.35,0.87999512]
[1766140154907,1.17633367,844.78,843.35,0.87999512]
[1766140155106,1.17633367,844.77,843.35,0.87999512]
[1766140155407,1.17633367,844.77,843.2,1.17775556]
[1766140155408,1.17633367,844.76,843.38,0.87999512]
[1766140155608,1.17633367,844.75,843.38,0.87999512]
[1766140155808,1.17633367,844.74,843.34,0.87999512]
[1766140156003,0.20615442,844.42,843.33,0.87999512]
[1766140156407,0.20615442,844.42,843.34,0.87999512]
[1766140156604,0.20615442,844.42,843.36,0.87999512]
[1766140157105,0.20615442,844.42,843.33,0.87999512]
[1766140157304,0.20615442,844.42,843.28,0.87999512]
[1766140157505,0.20615442,844.42,843.32,0.87999512]
[1766140158309,0.20615442,844.42,843.3,0.87999512]
[1766140158708,0.20615442,844.42,843.33,0.87999512]
[1766140159008,0.20615442,844.42,843.27,0.87999512]
[1766140159604,0.20615442,844.42,843.29,0.87999512]
[1766140159909,0.20615442,844.42,843.34,0.87999512]
[1766140160209,0.20615442,844.42,843.35,0.87999512]
[1766140160403,0.20615442,844.42,843.36,0.87999512]
[1766140161005,0.20615442,844.42,843.32,0.87999512]
[1766140161510,0.20615442,844.42,843.27,0.87999512]
[1766140161710,0.20615442,844.42,843.12,1.17775556]
[1766140161711,0.20615442,844.42,843.31,0.87999512]
[1766140161907,0.20615442,844.42,843.33,0.87999512]
[1766140162811,0.20615442,844.42,843.27,0.87999512]
[1766140163007,0.20615442,844.42,843.32,0.87999512]
[1766140163212,0.20615442,844.42,843.29,0.87999512]
[1766140163608,0.20615442,844.42,843.32,0.87999512]
[1766140163812,0.20615442,844.42,843.3,0.87999512]
[1766140164208,0.20615442,844.42,843.31,0.87999512]
[1766140164914,0.20615442,844.42,843.29,0.87999512]
[1766140165215,0.20615442,844.42,843.37,0.87999512]
[1766140165416,0.20615442,844.42,843.38,0.87999512]
[1766140165712,0.20615442,844.42,843.4,0.87999512]
[1766140165916,0.20615442,844.42,843.43,0.87999512]
[1766140166118,0.20615442,844.42,843.44,0.87999512]
[1766140166318,0.20615442,844.42,843.44,0.88332483]
[1766140166517,0.20615442,844.42,843.37,0.88332483]
[1766140166717,0.20615442,844.42,843.41,0.88332483]
[1766140166920,0.20615442,844.42,843.47,0.88332483]
[1766140167518,0.20615442,844.42,843.52,0.88332483]
[1766140167817,0.20615442,844.42,843.48,0.88332483]
[1766140168319,0.20615442,844.42,843.49,0.88332483]
[1766140168519,0.20615442,844.42,843.44,0.88332483]
[1766140168720,0.20615442,844.42,843.49,0.88332483]
[1766140169320,0.20615442,844.42,843.57,0.88332483]
[1766140169721,0.20615442,844.42,843.63,0.88332483]
[1766140170121,0.20615442,844.42,842.86,6.90723445]
[1766140170122,0.20615442,844.42,843.58,0.88332483]
[1766140170420,0.20615442,844.42,843.28,1.76663334]
[1766140170421,0.20615442,844.42,843.59,0.88332483]
[1766140171121,0.20615442,844.42,843.6,0.88332483]
[1766140172421,0.20615442,844.42,843.57,0.88332483]
[1766140172724,0.20615442,844.42,843.59,0.88332483]
[1766140173217,0.20615442,844.42,843.29,1.76663334]
[1766140173218,0.20615442,844.42,843.6,0.88332483]
[1766140173419,0.20615442,844.42,843.59,0.88332483]
[1766140173623,0.20615442,844.42,843.63,0.88332483]
[1766140173823,0.20615442,844.42,843.57,0.88332483]
[1766140174325,0.20615442,844.42,843.63,0.88332483]
[1766140175421,0.20615442,844.42,843.59,0.88332483]
[1766140175728,0.20615442,844.42,843.69,0.88332483]
[1766140175926,0.20615442,844.42,843.64,0.88332483]
[1766140176827,0.20615442,844.42,843.6,0.88332483]
[1766140177028,0.20615442,844.42,843.56,0.88332483]
[1766140177228,0.20615442,844.42,843.52,0.88332483]
[1766140177629,0.20615442,844.42,843.62,0.88332483]
[1766140177829,0.20615442,844.42,843.55,0.88332483]
[1766140178026,0.20615442,844.42,843.66,0.88332483]
[1766140178328,0.20615442,844.42,843.67,0.88332483]
[1766140178526,0.20615442,844.42,843.62,0.88332483]
[1766140179230,0.20615442,844.42,843.59,0.88332483]
[1766140179430,0.20615442,844.42,843.6,0.88332483]
[1766140180329,0.20615442,844.42,843.45,0.88332483]
[1766140180529,0.20615442,844.42,843.51,0.88332483]
[1766140181724,0.20615442,844.42,843.46,0.88332483]
[1766140182430,0.20615442,844.42,843.5,0.88332483]
[1766140182630,0.20615442,844.42,843.41,0.88332483]
[1766140182930,0.20615442,844.42,843.44,0.88332483]
[1766140183229,0.20615442,844.42,843.43,0.88332483]
[1766140183430,0.20615442,844.42,843.41,0.88332483]
[1766140184329,0.20615442,844.42,843.46,0.88332483]
[1766140184532,0.20615442,844.42,843.43,0.88332483]
[1766140185233,0.20615442,844.42,843.41,0.88332483]
[1766140185433,0.20615442,844.42,843.42,0.88332483]
[1766140185833,0.20615442,844.42,843.43,0.88332483]
[1766140186232,0.20615442,844.42,843.5,0.88332483]
[1766140186635,0.20615442,844.42,843.47,0.88332483]
[1766140187337,0.20615442,844.42,843.49,0.88332483]
[1766140187938,0.20615442,844.42,843.45,0.88332483]
[1766140188136,0.20615442,844.42,843.52,0.88332483]
[1766140189138,0.20615442,844.42,843.51,0.88332483]
[1766140189338,0.20615442,844.42,843.52,0.88332483]
[1766140189939,0.20615442,844.42,842.86,6.90723445]
[1766140189940,0.20615442,844.42,843.58,0.88332483]
[1766140190239,0.20615442,844.42,843.48,0.88332483]
[1766140190536,0.20615442,844.42,843.49,0.88332483]
[1766140191135,0.20615442,844.42,843.42,0.88332483]
[1766140191439,0.20615442,844.42,843.49,0.88332483]
[1766140192040,0.20615442,844.42,843.49,0.88543255]
[1766140192242,0.20615442,844.42,843.51,0.88543255]
[1766140192636,0.20615442,844.42,843.56,0.88543255]
[1766140193341,0.20615442,844.42,843.57,0.88543255]
[1766140193642,0.20615442,844.42,843.49,0.88543255]
[1766140195541,0.20615442,844.42,843.5,0.88543255]
[1766140196041,0.20615442,844.42,843.58,0.88543255]
[1766140196236,0.20615442,844.42,843.57,0.88543255]
[1766140196438,0.20615442,844.42,843.58,0.88543255]
[1766140197436,0.20615442,844.42,843.61,0.88543255]
[1766140198339,0.20615442,844.42,843.62,0.88543255]